Workbook

Sheet Indice
B1: Sociedad: | C1: CEMENTOS CONCEPCIÓN S.A.E.
A6: Fecha Presentación: | B6: 2020-12-31
C9: INDICE | D9: REF.
C10: Portada | D10: Portada
C11: Firma del Auditor externo | D11: Firma del Auditor externo
B12: Informacion General
C13: Descripción de la naturaleza y del negocio de la Sociedad | D13: Nota1
C14: Resumen de las principales políticas contables | D14: Nota 2
B15: Balance General | D15: BG
C16: Efectivo y equivalente de efectivo | D16: Nota 3
C17: Cuentas por cobrar comerciales | D17: Nota 4
C18: Otros créditos | D18: Nota 5
C19: Otros valores – Fideicomiso | D19: Nota 6
C20: Inventarios | D20: Nota 7
C21: Inversión en asociadas | D21: Nota 8
C22: Propiedades, planta y equipo/Bienes de uso, neto | D22: Nota 9
C23: Activos intangibles | D23: Nota 10
C24: Cuentas por pagar comerciales | D24: Nota 11
C25: Deudas financieras | D25: Nota 12
C26: Remuneraciones y cargas sociales a pagar
C27: Impuestos a pagar
C28: Provisiones | D28: Nota 13
C29: Otros pasivos corrientes | D29: Nota 14
C30: Capital integrado | D30: Nota 19
C31: Aporte p/ futura Integración | D31: Nota 19
C32: Reserva de revalúo | D32: Nota 20
C33: Reserva legal | D33: Nota 21
C34: Reservas facultatitvas | D34: Nota 21
C35: Resultados acumulados
B36: Estado de Resultados | D36: ER
C37: Ventas
C38: Costo de ventas
C39: Gastos de ventas | D39: Nota 16.1
C40: Gastos administrativos | D40: Nota 16.1
C41: Otros ingresos y gastos operativos | D41: Nota 16.2
C42: Ingresos financieros - neto | D42: Nota 17
C43: Impuesto a la renta | D43: Nota 18
B44: Estado de Evolución del Patrimonio Neto | D44: EVPN
B45: Estado de Flujos de Efectivo | D45: EFE
B46: Otras Notas de los Estados Financieros
C47: Bienes de uso con disponibilidad restringida | D47: Nota 22
C48: Restricción de la distribución de utilidades | D48: Nota 23
C49: Contingencias y compromisos | D49: Nota 24
C50: Situación de pandemia COVID-19 | D50: Nota 25
C51: Hechos posteriores | D51: Nota 26
C52: Saldos con partes relacionadas | D52: Nota 15

Sheet Portada
B3: 1. IDENTIFICACIÓN
B5: 1.1 NOMBRE O RAZÓN SOCIAL: Cementos Concepción Sociedad Anónima Emisora (CECON S.A.E.)
B7: 1.2 ANTECEDENTES DE CONSTITUCIÓN SOCIAL Y REFORMAS ESTATUTARIAS: es una compañía por acciones legalmente constituida en fecha 17 de agosto de 2000, con el nombre de CALERA RISSO SOCIEDAD ANÓNIMA COMERCIAL, INMOBILIARIA E INDUSTRIAL - (CARISA S.A.C.I.I.), por escritura pública Nº 109, pasada ante la notaria y escribana pública Eustaquia Benitez de Carrillo (titular del registro Nro. 96), e inscripta en la Dirección General de los Registros Públicos, Registro de Personas Jurídicas y Asociaciones según A.I. Nro. 1916 bajo el Nro. 630, folio 6351, Serie B en fecha 22/09/2000 y en el Registro Público de Comercio según A.I. Nro. 1916 bajo el Nro. 805, folio 5794 y Sgtes., Serie B en fecha 22/09/2000, con un capital inicial de Gs. 9.000.000.000.-
B13: Posteriormente se realiza, entre otros, una reducción de Capital Social a la suma de Gs. 3.000 millones, por rescate parcial de acciones, por escritura pública N° 80, pasada ante la escribana pública Gladys Delia Lichi Battilana (titular del registro Nro. 163), e inscripta en la Dirección General de los Registros Públicos, Registro de Personas Jurídicas y Asociaciones según Matrícula Jurídica Nro. 15.356, Serie Comercial, bajo el Nro. 01, folio Nro. 01, en fecha 24/09/2018 y en el Registro Público de Comercio según Matrícula Jurídica Nro. 15.593, Serie Comercial, bajo el Nro. 01, folio Nro. 01 y siguientes, en fecha 24/09/2018.
B17: Finalmente, a fin de posibilitar la emisión de títulos valores y negociar en la Bolsa de Valores se realiza la conversión de la sociedad de SACII a SAE (Sociedad Anónima Emisora), realizándose el cambio de la denominación de la sociedad, la que en adelante pasa a denominarse CEMENTOS CONCEPCIÓN SAE - (CECON SAE), se aumenta el capital social de Gs. 3.000 millones a Gs. 360.000 millones, y se realiza una reestructuración y modificación total del Estatuto Social vigente. Estos cambios fueron formalizados por escritura pública N° 19, pasada ante el notario y escribano público José María Livieres Guggiari (titular del registro Nro. 940), e inscripta en la Dirección General de los Registros Públicos, Registro de Personas Jurídicas y Asociaciones según Matrícula Jurídica Nro. 15.356, Serie Comercial, bajo el Nro. 02, folio Nro. 13, en fecha 15/02/2019 y en el Registro Público de Comercio según Matrícula Jurídica Nro. 15.593, Serie Comercial, bajo el Nro. 02, folio Nro. 14, en fecha 15/02/2019.
B24: 1.3 RUC: 80022117-6
B26: 1.4 ACTIVIDAD PRINCIPAL SEGÚN INSCRIPCIÓN EN EL RUC: Fabricación de cemento, cal y yeso.
B28: 1.5 ACTIVIDAD SECUNDARIA SEGÚN INSCRIPCIÓN EN EL RUC: Actividades inmobiliarias realizadas con bienes propios o arrendados.
B30: 1.6 DOMICILIO LEGAL: Avenida Primer Presidente N° 3299 esq. Calle 3.
B32: 1.7 TELÉFONO: (021) 282-009.
B34: 1.8 FAX: N/A
B36: 1.9 E-MAIL: info@cecon.com.py
B38: 1.10 SITIO PÁGINA WEB: www.cecon.com.py
B40: 2. ADMINISTRACIÓN
B42: CARGO | C42: NOMBRE Y APELLIDO
B43: Representante (s) Legal (es) | C43: José Mariano Ortiz Escauriza y Luis Alberto Lima Morra
B44: Presidente | C44: José Mariano Ortiz Escauriza
B45: Vicepresidente | C45: Luis Alberto Lima Morra
B46: Director | C46: Jorge Luis Méndez Cuevas
B47: Director | C47: Marco Antonio Laterra Uliambre
B48: Síndico | C48: Héctor Ortiz Insfrán
B49: Plana Ejecutiva
B50: - Gerente General | C50: Jorge Luis Méndez Cuevas
B52: 3. CAPITAL Y PROPIEDAD
B54: Capital Social | C54: Capital Emitido | D54: Capital Suscripto | E54: Capital Integrado | F54: Valor nominal de las acciones
B55: 360000000000 | C55: 360000000000 | D55: 360000000000 | E55: 330000000000 | F55: 1000000
B57: COMPOSICIÓN ACCIONARIA: Accionistas que detentan el diez (10) por ciento o más de participación en el Capital.
B59: N° | C59: Accionista | D59: Cantidad de Acciones | E59: Clase | F59: Voto | G59: Monto | H59: % de participación del capital integrado
B60: 1 | C60: HORACIO MANUEL CARTES JARA | D60: 198000 | E60: ORDINARIA | F60: 198000 | G60: 198000000000 | H60: 0.6
B61: 2 | C61: JIMÉNEZ GAONA Y LIMA EMPRESA DE CONSTRUCCIONES S.A. | D61: 82500 | E61: ORDINARIA | F61: 82500 | G61: 82500000000 | H61: 0.25
B62: 3 | C62: JOSÉ MARIANO ORTIZ ESCAURIZA | D62: 33000 | E62: ORDINARIA | F62: 33000 | G62: 33000000000 | H62: 0.1
B63: 4 | C63: JORGE LUIS MÉNDEZ CUEVAS | D63: 16500 | E63: ORDINARIA | F63: 16500 | G63: 16500000000 | H63: 0.05
B65: 4. AUDITOR EXTERNO INDEPENDIENTE
B67: 4.1 AUDITOR EXTERNO INDEPENDIENTE DESIGNADO: Ernst & Young Paraguay – Auditores y Asesores de Negocios
B69: 4.2 NÚMERO DE INSCRIPCIÓN EN EL REGISTRO DE LA CNV: 028

Sheet Firma del Auditor externo
C4: INFORME DE AUDITORIA DE LOS ESTADOS FINANCIEROS POR EL EJERCICIO FINALIZADO EL 31 DE DICIEMBRE DEL 2020
C7: Presentado en forma comparativa con el ejercicio anterior
C10: La firma del Auditor Externo Independiente es a fines de identificación con Dictamen emitido en fecha 30 de abril del 2021

Sheet BG
D1: =Indice!C1 -> CEMENTOS CONCEPCIÓN S.A.E. | E1: Indice
A7: BALANCE GENERAL AL 31 DE DICIEMBRE DE 2020
A8: Comparativo con el ejercicio anterior
A9: (Expresado en guaraníes – Nota 2.a)
E11: Nota | F11: =IFERROR(IF(Indice!B6="","2XX2",YEAR(Indice!B6)),"2XX2") -> 2020 | G11: =IFERROR(YEAR(Indice!B6-366),"2XX1") -> 2019
B12: ACTIVOS
B13: Activos Corrientes
C14: Efectivo y equivalente de efectivo | E14: Nota 3 | F14: ='Nota 3'!C19 -> 112055292108 | G14: ='Nota 3'!D19 -> 27199216207
C15: Cuentas por cobrar comerciales | E15: Nota 4 | F15: ='Nota 4'!C16 -> 7358143706 | G15: ='Nota 4'!D16 -> 8299995964
C16: Otros créditos | E16: Nota 5 | F16: ='Nota 5'!B17 -> 56201791993 | G16: ='Nota 5'!C17 -> 26395033080
C17: Otros valores – Fideicomiso | E17: Nota 6 | F17: =+'Nota 6'!B13 -> 8501062400 | G17: =+'Nota 6'!C13 -> 0
C18: Inventarios | E18: Nota 7 | F18: ='Nota 7'!B14 -> 26916680089 | G18: ='Nota 7'!C14 -> 1391832927
C19: Total activos corrientes | F19: =SUM(F14:F18) -> 211032970296 | G19: =SUM(G14:G18) -> 63286078178
B20: Activos no Corrientes
C21: Otros créditos | E21: Nota 5 | F21: ='Nota 5'!B27 -> 6249713393 | G21: ='Nota 5'!C27 -> 4699945185
C22: Inversión en asociadas | E22: Nota 8 | F22: ='Nota 8'!B9 -> 46750000 | G22: ='Nota 8'!C9 -> 0
C23: Propiedades, planta y equipo/Bienes de uso, neto | E23: Nota 9 | F23: ='Nota 9'!I23 -> 807268520608 | G23: ='Nota 9'!J23 -> 440062336170
C24: Activos intangibles | E24: Nota 10 | F24: ='Nota 10'!B13 -> 2993157145 | G24: ='Nota 10'!C13 -> 1855461139
C25: Total activos no corrientes | F25: =SUM(F21:F24) -> 816558141146 | G25: =SUM(G21:G24) -> 446617742494
B26: Total Activos | F26: =+F19+F25 -> 1027591111442 | G26: =+G19+G25 -> 509903820672
B27: PASIVOS Y PATRIMONIO NETO
B28: Pasivos corrientes | F28: -1
C29: Cuentas por pagar comerciales | E29: Nota 11 | F29: ='Nota 11'!D16 -> 28038961949 | G29: ='Nota 11'!E16 -> 3593792732
C30: Deudas financieras | E30: Nota 12 | F30: ='Nota 12'!E30 -> 831758738 | G30: ='Nota 12'!K30 -> 1.681397361e+11
C31: Remuneraciones y cargas sociales a pagar | F31: 440480167 | G31: 166708747
C32: Impuestos a pagar | F32: 0 | G32: 230722158
C33: Provisiones | E33: Nota 13 | F33: ='Nota 13'!B13 -> 6978943153 | G33: ='Nota 13'!C13 -> 1023377383
C34: Otros pasivos corrientes | E34: Nota 14 | F34: ='Nota 14'!B12 -> 42741432897 | G34: ='Nota 14'!C12 -> 832544219
C35: Total Pasivos Corrientes | F35: =SUM(F29:F34) -> 79031576904 | G35: =SUM(G29:G34) -> 1.739868813e+11
B36: Pasivos no corrientes
C37: Deudas financieras | E37: Nota 12 | F37: ='Nota 12'!E58 -> 623732800069 | G37: ='Nota 12'!K58 -> 0
C38: Total pasivos no corrientes | F38: =SUM(F37:F37) -> 623732800069 | G38: =SUM(G37:G37) -> 0
B40: Total Pasivos | F40: =+F35+F38 -> 702764376973 | G40: =+G35+G38 -> 1.739868813e+11
B41: Patrimonio Neto
C42: Capital integrado | E42: Nota 19 | F42: =+EVPN!C33 -> 330000000000 | G42: =+EVPN!C28 -> 330000000000
C43: Aporte p/ futura Integración | E43: Nota 19 | F43: =+EVPN!F33 -> 135829875 | G43: =+EVPN!F28 -> 135829875
C44: Reserva de revalúo | E44: Nota 20 | F44: 5421755260 | G44: 5421755260
C45: Reserva legal | E45: Nota 21 | F45: 40914841 | G45: 2624662
C46: Reservas facultatitvas | E46: Nota 21 | F46: 318439394 | G46: 0
C47: Resultados acumulados | F47: -11090204901 | G47: 356729573
B48: Total Patrimonio Neto | F48: =+SUM(F42:F47) -> 324826734469 | G48: =+SUM(G42:G47) -> 335916939370
B49: Total Pasivos y Patrimonio Neto | F49: =+F40+F48 -> 1027591111442 | G49: =+G40+G48 -> 5.099038207e+11
B51: Las notas que se acompañan forman parte integrante de los estados financieros

Sheet ER
A1: =Indice!C1 -> CEMENTOS CONCEPCIÓN S.A.E. | B1: Indice | D1: =ER!A4 -> 
A7: ESTADO DE RESULTADOS POR EL EJERCICIO FINALIZADO EL 31 DE DICIEMBRE DE 2020
A8: Comparativo con el ejercicio anterior
A9: (Expresado en guaraníes – Nota 2.a)
B12: Nota | C12: =IFERROR(IF(Indice!B6="","2XX2",YEAR(Indice!B6)),"2XX2") -> 2020 | D12: =IFERROR(YEAR(Indice!B6-366),"2XX1") -> 2019
A13: Ventas | C13: 75146229511 | D13: 27147975957
A14: Costo de ventas | C14: -62925796515 | D14: -24838344611
A16: Utilidad bruta | C16: =C13+C14 -> 12220432996 | D16: =D13+D14 -> 2309631346
A18: Gastos de ventas | B18: Nota 16.1 | C18: =-'Nota 16.1'!B37 -> -507779155 | D18: =-'Nota 16.1'!E37 -> -125101205
A19: Gastos administrativos | B19: Nota 16.1 | C19: =-'Nota 16.1'!C37 -> -34633174500 | D19: =-'Nota 16.1'!F37 -> -17335037393
A20: Otros ingresos y gastos operativos | B20: Nota 16.2 | C20: =+'Nota 16.2'!B10 -> 312930366 | D20: =+'Nota 16.2'!C10 -> 4490707
A22: Resultado operativo | C22: =SUM(C16:C20) -> -22607590293 | D22: =SUM(D16:D20) -> -15146016545
A24: Ingresos financieros - neto | B24: Nota 17 | C24: ='Nota 17'!B13 -> 10672504771 | D24: ='Nota 17'!C13 -> 16142542291
A26: Resultado ordinario antes del impuesto a la renta | C26: =+SUM(C22:C24) -> -11935085522 | D26: =+SUM(D22:D24) -> 996525746
A28: Impuesto a la renta | B28: Nota 18 | C28: ='Nota 18'!B17 -> 844880621 | D28: ='Nota 18'!C17 -> -230722158
A30: Utilidad/(Pérdida) neta del ejercicio | C30: =C26+C28 -> -11090204901 | D30: =D26+D28 -> 765803588
A33: =+BG!B51 -> Las notas que se acompañan forman parte integrante de los estados financieros

Sheet EVPN
A1: =Indice!C1 -> CEMENTOS CONCEPCIÓN S.A.E. | H1: Indice
F8: ESTADO DE EVOLUCIÓN DEL PATRIMONIO NETO POR EL EJERCIO FINALIZADO EL 31 DE DICIEMBRE DE 2020
F9: Comparativo con el ejercicio anterior
F10: (Expresado en guaraníes)
C16: Aporte de los propietarios | J16: Ganancias reservadas
C17: Capital suscripto e integrado | D17: Aporte para | F17: Aporte a Integrar | H17: Reserva de revalúo | J17: Reserva legal | L17: Reserva facultativa | N17: Resultados acumulados | P17: Resultado del Ejercicio | R17: Total
D18: aumento de capital | N18: Total
A20: Saldo al 31 de diciembre de 2018 | C20: 41107000000 | F20: 402816791 | H20: 5374029285 | J20: 0 | L20: 0 | N20: -458942591 | P20: 52493238 | R20: =+SUM(C20:P20) -> 46477396723
A21: Transferencia | C21: 0 | F21: 0 | H21: 0 | J21: 0 | L21: 0 | N21: 52493238 | P21: -52493238 | R21: 0
A22: Aporte para Futura Integración | C22: 0 | F22: 288626013084 | H22: 0 | R22: 288626013084
A23: Integración del capital social | C23: 288893000000 | F23: -288893000000 | L23: 0 | P23: 0 | R23: 0
A24: Reserva de revalúo | H24: 47725975 | R24: 47725975
A25: Reserva legal | J25: 2624662 | N25: =-J25 -> -2624662 | R25: 0
A26: Resultado del ejercicio | F26: 0 | H26: 0 | J26: 0 | L26: 0 | N26: 0 | P26: 765803588 | R26: 765803588
A28: Saldo al 31 de diciembre de 2019 | C28: =+SUM(C20:C26) -> 330000000000 | D28: =SUM(D20:D26) -> 0 | F28: =+SUM(F20:F26) -> 135829875 | G28: =SUM(G20:G27) -> 0 | H28: =+SUM(H20:H26) -> 5421755260 | J28: =+SUM(J20:J26) -> 2624662 | L28: =+SUM(L20:L26) -> 0 | N28: =+SUM(N20:N26) -> -409074015 | P28: =+SUM(P20:P26) -> 765803588 | R28: =+SUM(C28:P28) -> 335916939370
A29: Transferencia | N29: 765803588 | P29: -765803588 | R29: =+SUM(C29:P29) -> 0
A30: Reserva Legal y Otros | J30: 38290179 | L30: 318439394 | N30: -356729573 | P30: =+P28+P29 -> 0 | R30: =+SUM(C30:P30) -> 0
A31: Resultado del ejercicio | P31: -11090204901 | R31: =+SUM(C31:P31) -> -11090204901
A33: Saldo al 31 de diciembre de 2020 | C33: =+SUM(C28:C31) -> 330000000000 | D33: =SUM(D28:D31) -> 0 | F33: =+SUM(F28:F31) -> 135829875 | H33: =+SUM(H28:H31) -> 5421755260 | J33: =+SUM(J28:J31) -> 40914841 | L33: =+SUM(L28:L31) -> 318439394 | N33: =+SUM(N28:N31) -> 0 | P33: =+SUM(P28:P31) -> -11090204901 | R33: =+SUM(R28:R31) -> 324826734469
A35: =+BG!B51 -> Las notas que se acompañan forman parte integrante de los estados financieros

Sheet EFE
A1: =Indice!C1 -> CEMENTOS CONCEPCIÓN S.A.E.
A5: ESTADO DE FLUJOS DE EFECTIVO POR EL EJERCICIO FINALIZADO EL 31 DE DICIEMBRE DE 2020
A6: Comparativo con el ejercicio anterior
A7: (Expresado en guaraníes)
B11: =IFERROR(IF(Indice!B6="","2XX2",YEAR(Indice!B6)),"2XX2") -> 2020 | C11: =IFERROR(YEAR(Indice!B6-366),"2XX1") -> 2019
A13: FLUJO DE EFECTIVO DE ACTIVIDADES OPERATIVAS
A14: Cobranzas efectuadas a clientes | B14: 75479388798 | C14: 18848280873
A15: Pagos efectuados a proveedores y empleados | B15: -128774527873 | C15: -58538026517
A16: Intereses pagados | C16: -2915048476
A17: Otros ingresos y (egresos) - neto | B17: 316991461 | C17: 4522821
A18: Pagos de impuesto a la renta | B18: -278910374 | C18: -29925393
A19: Flujo neto de efectivo de actividades operativas | B19: =SUM(B14:B18) -> -53257057988 | C19: =SUM(C14:C18) -> -42630196692
A21: FLUJO DE EFECTIVO DE ACTIVIDADES DE INVERSIÓN
A22: Adquisición de bienes de uso | B22: -363683566339 | C22: =-380407695802-16714348519-3216399876 -> -400338444197
A23: Aquisición de inversiones | B23: -46750000 | C23: 0
A24: Flujo neto de efectivo de actividades de inversión | B24: =SUM(B22:B23) -> -363730316339 | C24: =SUM(C22:C23) -> -400338444197
A26: FLUJO DE EFECTIVO DE ACTIVIDADES DE FINANCIACIÓN
A27: Incremento de préstamos | B27: 290655705528 | C27: 164376831690
A28: Incremento por emisión de bonos | B28: 200000000000 | C28: 0
A29: Aportes de capital recibidos | B29: 0 | C29: 288626013084
A30: Flujo neto de efectivo de actividades de financiamiento | B30: =SUM(B27:B29) -> 490655705528 | C30: =SUM(C27:C29) -> 453002844774
A32: Incremento neto de efectivo | B32: =+B36-B34 -> 84856075901 | C32: =+C36-C34 -> 26748552404
A33: Efecto estimado de la diferencia de cambio sobre el saldo de efectivo | B33: 11187744700 | C33: 16714348519
A34: Efectivo al principio del año | B34: =+C36 -> 27199216207 | C34: 450663803
A36: Efectivo al final del periodo | B36: =+BG!F14 -> 112055292108 | C36: =+BG!G14 -> 27199216207
A38: =+BG!B51 -> Las notas que se acompañan forman parte integrante de los estados financieros

Sheet Nota1
A1: =Indice!C1 -> CEMENTOS CONCEPCIÓN S.A.E. | I1: BG | L1: Indice
E3: NOTAS A LOS ESTADOS FINANCIEROS AL 31 DE DICIEMBRE DE 2020
E4: Comparativo con el ejercicio anterior
E5: (Expresado en guaraníes)
A9: NOTA 1 – DESCRIPCIÓN DE LA NATURALEZA Y DEL NEGOCIO DE LA COMPAÑÍA
A11: LA SOCIEDAD Es una compañía por acciones legalmente constituida en fecha 17 de agosto de 2000, con el nombre de CALERA RISSO SOCIEDAD ANÓNIMA COMERCIAL, INMOBILIARIA E INDUSTRIAL - (CARISA S.A.C.I.I.), por escritura pública Nº 109, pasada ante la notaria y escribana pública Eustaquia Benitez de Carrillo (titular del registro Nro. 96), e inscripta en la Dirección General de los Registros Públicos, Registro de Personas Jurídicas y Asociaciones según A.I. Nro. 1916 bajo el Nro. 630, folio 6351, Serie B en fecha 22/09/2000 y en el Registro Público de Comercio según A.I. Nro. 1916 bajo el Nro. 805, folio 5794 y siguientes, Serie B en fecha 22/09/2000, con un capital inicial de Gs. 9.000.000.000.- Posteriormente, se realiza, entre otros, una reducción de Capital Social a la suma de Gs. 3.000 millones, por rescate parcial de acciones, por escritura pública N° 80, pasada ante la escribana pública Gladys Delia Lichi Battilana (titular del registro Nro. 163), e inscripta en la Dirección General de los Registros Públicos, Registro de Personas Jurídicas y Asociaciones según Matrícula Jurídica Nro. 15.356, Serie Comercial, bajo el Nro. 01, folio Nro. 01, en fecha 24/09/2018 y en el Registro Público de Comercio según Matrícula Jurídica Nro. 15.593, Serie Comercial, bajo el Nro. 01, folio Nro. 01 y siguientes, en fecha 24/09/2018. Finalmente, a fin de posibilitar la emisión de títulos valores y negociar en la Bolsa de Valores se realiza la conversión de la sociedad de S.A.C.I.I. a S.A.E. (Sociedad Anónima Emisora), realizándose el cambio de la denominación de la sociedad, la que en adelante pasa a denominarse CEMENTOS CONCEPCIÓN S.A.E. - (CECON S.A.E.), se aumenta el capital social de Gs. 3.000 millones a Gs. 360.000 millones, y se realiza una reestructuración y modificación total del Estatuto Social vigente. Estos cambios fueron formalizados por escritura pública N° 19, pasada ante el notario y escribano público José María Livieres Guggiari (titular del registro Nro. 940), e inscripta en la Dirección General de los Registros Públicos, Registro de Personas Jurídicas y Asociaciones según Matrícula Jurídica Nro. 15.356, Serie Comercial, bajo el Nro. 02, folio Nro. 13, en fecha 15/02/2019 y en el Registro Público de Comercio según Matrícula Jurídica Nro. 15.593, Serie Comercial, bajo el Nro. 02, folio Nro. 14, en fecha 15/02/2019. La Sociedad tiene por objeto principal dedicar¬se por cuenta propia o de terceros o asociada a terceros, a las siguientes actividades A LA EXPLOTACIÓN, INDUSTRIALIZACIÓN Y COMERCIALIZACIÓN DE PIEDRAS CALIZAS Y SUS DERIVADOS, TALES COMO, la producción de cal viva, hidratada, calcáreo para la corrección de la acidez de suelos agrícolas, para la fabricación de cementos, portland, puzolánicos, de escorias, y otros. La duración de la sociedad se fijó en NOVENTA Y NUEVE años a contar desde la fecha de la inscripción, de la modificación estatutaria formalizada por escritura pública Nro. 19, ante los Registros Públicos correspondientes (15/02/2019). El plazo podrá prorro¬garse o antici¬parse la disolución por resolu¬ción de una Asam¬blea General Extraordina¬ria de Accionistas. El capital social autorizado es de Gs. 360.000.000.000. Al 30/06/2020 se encuentra integrado por la suma de Gs. 330.000.000.000, y está representado por 330.000 acciones nominativas, ordinarias de valor nominal Gs. 1.000.000 cada una. La Dirección y Administración de la sociedad estarán a cargo de un Directorio compuesto por mínimo de 3 (tres) y un máximo de 7 (siete) Directores Titulares, accionistas o no, electos por la Asamblea General Ordinaria de Accionistas, la que determina en cada caso el número de miembros de que estará compuesto el Directorio dentro del mínimo y del máximo autorizado. La Asamblea determinará en cada caso, la elección o no de Directores Suplentes, así como el número de los mismos. Los Directores durarán un (1) año en el ejercicio de sus funciones, pudiendo ser indefinidamente reelectos.
A18: La fiscalización de la sociedad es ejercida por un Síndico Titular y un Síndico Suplente designados anualmente por la Asamblea General Ordinaria de Accionistas, cuyas atribuciones son las que el Código Civil determina. Durarán (1) un año en sus funciones, pudiendo ser reelectos. La sociedad fija su domicilio en la ciudad de Asunción, capital de la República del Paraguay, además cuenta con una sede (futura planta industrial) en la localidad de Morado, del distrito de San Lázaro del departamento de Concepción.

Sheet Nota 2
A1: =Indice!C1 -> CEMENTOS CONCEPCIÓN S.A.E. | I1: BG
A6: NOTA 2 - RESUMEN DE LAS PRINCIPALES POLÍTICAS CONTABLES
A8: a. Bases de contabilización (Según NIF Bases de preparación de los Estados Financieros)
A9: Los estados financieros se han preparado siguiendo los criterios de las Normas de Información Financiera (NIF) emitidas por el Consejo de Contadores Públicos del Paraguay sobre la base de cos-tos históricos, excepto para el caso de activos y pasivos en moneda extranjera y las propiedades, planta y equipo según se explica en la Notas j, y no reconocen en forma integral los efectos de la inflación sobre la situación patrimonial y financiera de la sociedad, sobre los resultados de sus operaciones y los flujos de efectivo, en atención a que la corrección monetaria no constituye una práctica contable obligatoria en el Paraguay.
A15: b. Concepto de Capital
A16: El capital de la Sociedad se mantiene a costo histórico.
A19: c. Uso de estimaciones contables
A20: La preparación de los presentes estados financieros requiere que la Gerencia de la sociedad realice estimaciones y evaluaciones que afectan el monto de los activos y pasivos registrados y contin-gentes, como así también los ingresos y egresos registrados en el ejercicio. Los resultados reales futuros pueden diferir de las estimaciones y evaluaciones realizadas a la fecha de preparación de los presentes estados financieros.
A25: d. Moneda extranjera
A26: Las operaciones en moneda extranjera se contabilizaron por su equivalente en moneda nacional en función de los tipos de cambio vigentes en el mercado a la fecha de concreción de las transac-ciones.
A29: Los saldos de las cuentas del activo y pasivo monetarios denominados en moneda extranjera son convertidos al Guaraní a la cotización vigente a la fecha de cierre de los estados financieros. Las diferencias originadas por fluctuaciones en los tipos de cambio entre las fechas de concertación de las operaciones y su liquidación o valuación al cierre son reconocidas con cargo a los resultados del período.
A32: El detalle de las cotizaciones de la moneda extranjera operada por la Entidad respecto al guaraní, al promedio y cierre de los estados financieros:
B34: Promedio | E34: Cierre
B35: 2020 | C35: 2019 | E35: 2020-12-01 | H35: 2019-12-01
E36: Comprador | F36: Vendedor | H36: Comprador | I36: Vendedor
A37: Dólares estadounidenses | B37: 6988 | C37: 6240 | E37: 6892 | F37: 6942 | H37: 6442 | I37: 6464
A38: Euro | B38: 8302 | C38: 6985 | E38: 8466 | F38: 8528 | H38: 7217 | I38: 7242
A39: Real | B39: 1318 | C39: 1583 | E39: 1328 | F39: 1337 | H39: 1595 | I39: 1600
A42: e. Efectivo y sus equivalentes
A43: Se considerarán dentro del concepto de efectivo los saldos en efectivo, disponibilidades en cuentas bancarias y toda inversión de muy alta liquidez, con vencimiento originalmente pactado no superior a tres meses. Ver Nota 3
A46: f. Inversiones
A47: Las inversiones temporales se valúan de acuerdo a los siguientes criterios de valuación:  Colocaciones financieras en moneda local: a su valor nominal más los intereses devengados al cierre del año/período. Ver Nota 3  Colocaciones financieras en moneda extranjera: a su valor de cotización al cierre del año/período más intereses devengados a ese momento. Ver Nota 3
A48: Las inversiones no corrientes consideradas asociadas, y en donde la Compañía tiene influencia significativa han sido valuada a su valor patrimonial proporcional. En aquellas inversiones no corrientes donde la Compañía no tiene influencia significativa o control, las mismas se encuentran valuadas a su costo. Ver Nota 8
A52: g. Créditos y Cuentas por Cobrar
A53: En moneda local: se reflejan a su valor nominal. Ver Nota 5
A54: En moneda extranjera: se valúan a los tipos de cambio vigentes a la fecha de cada balance general, como se menciona en la presente Nota inciso d. Ver Nota 5
A57: h. Previsión para cuentas de dudoso cobro/incobrables
A58: Las previsiones para cuentas de dudoso cobro se determinan al cierre de cada trimestre sobre la base del estudio de la cartera de créditos realizado con el objeto de determinar la porción no recuperable de las cuentas a cobrar. Ver Nota 5
A62: i. Inventarios
A63: Las existencias se valúan al costo de adquisición o de producción. Para determinar el consumo se aplica el PPP (Precio Promedio Ponderado). Ver Nota 7
A66: j. Propiedades, planta y equipo
A67: Las propiedades, planta y equipo se exponen a su costo histórico ajustado por el coeficiente de revalúo emitido por la Autoridad Tributaria, menos la correspondiente depreciación acumulada. El incremento neto por la re-expresión se acredita a la respectiva reserva patrimonial, cuyo saldo puede ser utilizado únicamente para aumentar el capital.
A70: En fecha 1 de enero de 2020 entro en vigencia la Ley N° 6.380/19 de Modernización y Simplificación del Sistema Tributario Nacional, la cual establece que el Poder Ejecutivo podrá establecer el revalúo obligatorio de los bienes del activo fijo, cuando la variación del Índices de Precio al Consumo determinado por el Banco Central del Paraguay alcance al menos el 20 %, acumulado desde el ejercicio en el cual se haya dispuesto el último revalúo. Para el cierre del ejercicio finalizado al 31 de diciembre de 2020, la variación acumulada del Índice de Precios al Consumidor no alcanzó el 20%, por tal motivo no fue efectuado el revalúo de los bienes del activo fijo.
A75: El costo de las mejoras que extienden la vida útil de los bienes o aumentan su capacidad productiva es imputado a las cuentas respectivas del activo. Los gastos de mantenimiento son cargados a resultados.
A78: La depreciación es calculada por el método de línea recta y año siguiente. Las depreciaciones de equipos adquiridos con el fin de llevar a cabo la construcción de la Planta Cementera son cargados al costo de la obra en curso y las depreciaciones de los demás bienes son cargadas a estado de resultados. Ver Nota 9
A81: El costo de las mejoras que extienden la vida útil de los bienes o aumentan su capacidad productiva es imputado a las cuentas respectivas del activo. Los gastos de mantenimiento son cargados a resultados.
A85: k. Intangibles
A86: Los intangibles se exponen a su costo incurrido menos las correspondientes amortizaciones acumuladas al cierre del año.
A87: Las amortizaciones son calculadas por el método de línea recta. Ver Nota 11
A88: Este rubro incluye costos incurridos por la sociedad relacionados con ingresos futuros.
A91: l. Costos por préstamos
A92: Los costos por préstamos que sean directamente atribuibles a la adquisición, construcción o producción de un activo que necesariamente lleve un período de tiempo sustancial para que esté disponible para su uso esperado o su venta, se capitalizan como parte del costo del activo. Todos los demás costos por préstamos se contabilizan como gastos en el período en el que se incurren. Los costos por préstamos incluyen los intereses y otros costos en los que incurre la entidad en relación con la celebración de los acuerdos de préstamo respectivos. Ver Nota 9
A97: m. Impuesto a la renta
A98: El impuesto a la renta que se carga a los resultados del año se basa en la utilidad contable antes de este concepto, ajustada por las partidas que la ley incluye o excluye para la determinación de la utilidad gravable a la que se aplica la tasa del impuesto y por el reconocimiento del cargo o el ingreso originados por la aplicación del impuesto diferido, si los hubiere. La tasa legal es del 10% para los períodos presentados. Hasta el 31 de diciembre de 2019 estuvo vigente el Impuesto a la Renta a las Actividades Comerciales e Industriales (IRACIS), y a partir del 1 de enero de 2020 entro en vigencia la Ley N° 6.380/2019 por el cual el Impuesto a la Renta se denomina actualmente Impuesto a la Renta Empresarial (IRE), manteniéndose la tasa del 10 %
A103: A partir de la entrada en vigencia, 1 de enero de 2020, de la Ley 6380/19, el IRACIS se cambia por el Impuesto a la Renta de las Empresas (IRE), siendo la tasa de dicho impuesto el 10%, y la distribución de dividendos y utilidades estará sujeta a una retención del 8% en concepto del Impuesto a los Dividendos y a las Utilidades (IDU) a personas físicas o jurídicas domiciliadas en el país, mientras que la tasa será del 15% cuando se tratase de no domiciliados.
A107: El impuesto diferido es calculado utilizando el método del estado de situación basado en el balance general, determinado a partir de las diferencias temporarias entre los importes contables de activos y pasivos y los importes utilizados para fines fiscales. El importe de impuesto diferido calculado está basado en la forma esperada de realización o liquidación de los importes contables de activos y pasivos, utilizando la tasa de impuesto aprobada a la fecha de los estados financieros.
A111: Un activo por impuesto diferido es reconocido solamente hasta el importe que es probable que futuras ganancias imponibles estarán disponibles, contra cuyos respectivos impuestos, el activo pueda ser utilizado.
A115: n. Indemnizaciones por despido
A116: Las indemnizaciones por despido son cargadas a resultados en el momento de su pago.
A119: o. Reconocimiento de ingresos y egresos
A120: Los ingresos y egresos son reconocidos en función de su devengamiento.
A123: p. Cambios en Políticas Contables
A124: A partir del 1 de enero del 2020, la Compañía inició la aplicación de las Normas de Información Financiera (NIF) emitidas por el Consejo de Contadores Públicos del Paraguay. Del análisis realizado por la Compañía, no se identificaron cambios sean significativos por la aplicación del nuevo marco contable.
A128: q. Información comparativa
A129: Los saldos al 31 de diciembre 2019 que se exponen a efectos comparativos surgen de los estados financieros auditados a dicha fecha e incluyen ciertas reclasificaciones no significativas, a los efectos de su presentación comparativa uniforme con los del presente ejercicio.

Sheet Nota 3
A1: =Indice!C1 -> CEMENTOS CONCEPCIÓN S.A.E. | E1: BG
A7: NOTA 3 - EFECTIVO Y EQUIVALENTE DE EFECTIVO
A9: El saldo al 31 de diciembre del 2020 y 2019, es como sigue, en guaraníes:
A11: Concepto | C11: =IFERROR(IF(Indice!B6="","2XX2",YEAR(Indice!B6)),"2XX2") -> 2020 | D11: =IFERROR(YEAR(Indice!B6-366),"2XX1") -> 2019
A13: Caja | C13: 92348118 | D13: 71542529
A14: Recaudaciones a depositar | C14: 53754000 | D14: 7360000
A15: Bancos Locales - Moneda local Guaraníes | C15: 8075141886 | D15: 3038198867
A16: Bancos Locales - Moneda extranjera Dólares | C16: 8103644570 | D16: 24082114811
A17: Fondos Mútuos - Moneda local Guaraníes | C17: 75113911346 | D17: 0 | E17: (*)
A18: Fondos Mútuos - Moneda extranjera Dólares | C18: 20616492188 | D18: 0 | E18: (*)
A19: Total | C19: =SUM($C$13:C18) -> 112055292108 | D19: =SUM($D$13:D18) -> 27199216207
A21: (*) Los saldos en cuentas de Fondos Mutuos colocados a través del BASA CAPITAL CASA DE BOLSA S.A. y REGIONAL CASA DE BOLSA S.A., son operaciones a la vista que generan intereses, pero por tener el carácter de a la vista y además funcionan como una caja de ahorro a la vista, son clasificados como disponibles.

Sheet Nota 4
A1: =Indice!C1 -> CEMENTOS CONCEPCIÓN S.A.E. | F1: BG
A3: La cartera de cuentas a cobrar consta de dos segmentos bien diferentes, de los cuales uno proviene de las ventas a crédito realizadas a clientes y el otro por un préstamo otorgado a corto plazo y el detalle es como sigue:
A5: NOTA 4 – CUENTAS POR COBRAR COMERCIALES
A6: Las cuentas a cobrar comerciales a corto plazo se integran como sigue:
C8: =IFERROR(IF(Indice!B6="","2XX2",YEAR(Indice!B6)),"2XX2") -> 2020 | D8: =IFERROR(YEAR(Indice!B6-366),"2XX1") -> 2019
A9: Deudores por ventas locales | B9: Moneda Local Guaraníes | C9: =5645558058-C10-C11-2 -> 4296994030 | D9: =866038000-D11 -> 843750000
A10: Deudores por ventas locales | B10: Moneda Extranjera Dólares | C10: =165898*6891.96 -> 1143362380 | D10: 0
A11: Deudores - Entidad relacionada | B11: Moneda Local Guaraníes | C11: 205201646 | D11: 22288000
A12: Cheques adelantados recibidos de clientes | B12: Moneda Local Guaraníes | C12: 1664046256 | D12: 7433957964
A13: Cheques rechazados | B13: Moneda Local Guaraníes | C13: 258096969 | D13: 0
A14: Subtotal | C14: =+SUM(C9:C13) -> 7567701281 | D14: =+SUM(D9:D13) -> 8299995964
A15: Menos Previsiones | C15: -209557575 | D15: 0
A16: Total | C16: =+SUM($C$14:C15) -> 7358143706 | D16: =+D14+D15 -> 8299995964
A19: Composición de la cartera de créditos por ventas | B19: =IFERROR(IF(Indice!B6="","2XX2",YEAR(Indice!B6)),"2XX2") -> 2020
A20: Situación | B20: Monto | C20: % Previsiones sobre Cartera
A21: A Total Cartera no Vencida | B21: =2700888000+1561585650-2 -> 4262473648
A22: B. Total Cartera Vencida | B22: =+B25+B27 -> 3305227633 | C22: (*)
A23: Subtotal | B23: =+SUM(B21:B22) -> 7567701281
A24: Composición Cartera Vencida (*)
A25: Normal | B25: 2944670058
A26: En Gestión de Cobro | B26: 0
A27: En Gestión de Cobro Judicial | B27: 360557575 | C27: 0.5
A28: Total de la cartera de créditos vencida | B28: =+B25+B26+B27 -> 3305227633
A29: Total de la cartera de créditos (A+B) | B29: =B21+B22 -> 7567701281
A31: (-) Total Previsiones | B31: =+C15 -> -209557575
A33: TOTAL NETO DE LA CARTERA DE CRÉDITOS | B33: =B29+B31 -> 7358143706
A35: Observaciones
A36: Criterios de Clasificación utilizados | B36: De días | C36: A días
A37: Normal | B37: 1 | C37: 60
A38: En Gestión de Cobro | B38: 61 | C38: 120
A39: En Gestión de Cobro Judicial | B39: 121 | C39: 180

Sheet Nota 5
A1: =Indice!C1 -> CEMENTOS CONCEPCIÓN S.A.E. | D1: BG
A4: NOTA 5 - OTROS CRÉDITOS
A6: El saldo al 31 de diciembre del 2020 y 2019, es como sigue, en guaraníes:
A8: Corrientes
A10: Concepto | B10: =IFERROR(IF(Indice!B6="","2XX2",YEAR(Indice!B6)),"2XX2") -> 2020 | C10: =IFERROR(YEAR(Indice!B6-366),"2XX1") -> 2019
A11: Anticipos a proveedores | B11: =3286762595+568608703+9226759135 -> 13082130433 | C11: =9075768685+2841213818 -> 11916982503
A12: Gastos pagados por adelantado | B12: 66322327 | C12: 3789715300
A13: Anticipo Impuesto a la Renta | B13: 63150912 | C13: 14962696
A14: Retención Impuesto a la Renta | B14: 231771883 | C14: 167444489
A15: Retención Impuesto al Valor agregado | B15: 1915757713 | C15: 427814890
A16: IVA Crédito fiscal | B16: =40154414066+688244659 -> 40842658725 | C16: =9949736364+32883435+95493403 -> 10078113202
A17: Total | B17: =SUM($B$11:B16) -> 56201791993 | C17: =SUM($C$11:C16) -> 26395033080
A20: No corrientes
A22: Concepto | B22: =IFERROR(IF(Indice!B6="","2XX2",YEAR(Indice!B6)),"2XX2") -> 2020 | C22: =IFERROR(YEAR(Indice!B6-366),"2XX1") -> 2019
A23: Gastos de Desarrollo e Investigación | B23: 2616786248 | C23: 1904823819
A24: Gastos de Reorganización | B24: 2788046524 | C24: 2795121366
A25: Crédito por Impuesto a las Ganancias Diferido | B25: 4224403104 | C25: 0
A26: Previsión Crédito por Impuesto Diferido | B26: -3379522483 | C26: 0
A27: Total | B27: =SUM(B23:B26) -> 6249713393 | C27: =SUM(C23:C26) -> 4699945185
A29: Nota: El saldo de Anticipos a Proveedores (USD), al 31/12/2020, está conformado por anticipos a proveedores locales y del exterior por la adquisición de equipos y servicios de consultoría referidos a la construcción de la planta cementera, de conformidad a los contratos y acuerdos suscriptos entre las partes.

Sheet Nota 6
A1: =Indice!C1 -> CEMENTOS CONCEPCIÓN S.A.E. | E1: BG
A4: Nota 6 - OTROS VALORES – FIDEICOMISO
A6: El saldo al 31 de diciembre del 2020 y 2019, es como sigue, en guaraníes:
B8: =IFERROR(IF(Indice!B6="","2XX2",YEAR(Indice!B6)),"2XX2") -> 2020 | C8: =+IFERROR(YEAR(Indice!B6-366),"2XX1") -> 2019
A9: Conceptos
A10: Fideicomiso Cta. Reserva - Moneda local Guaraníes | B10: 4277295761 | C10: 0
A11: Fideicomiso Cta. Reserva - Moneda extranjera Dólares | B11: 3828421821 | C11: 0
A12: Fideicomiso Ctas. Recaudadoras - Moneda local Guaraníes | B12: 395344818 | C12: 0
A13: Total | B13: =SUM($B9:B12) -> 8501062400 | C13: =SUM($C9:C12) -> 0
A16: NOTA 6.1: Estos saldos están restringidos porqué son cuentas del Fideicomiso y conforman la garantía para el pago de la cuota del préstamo. NOTA 6.2: Estos saldos están restringidos ocasionalmente y son transferidos diariamente a cuentas disponibles.

Sheet Nota 7
A1: =Indice!C1 -> CEMENTOS CONCEPCIÓN S.A.E. | D1: BG
A4: NOTA 7 – INVENTARIO
A6: El saldo al 31 de diciembre 2020 y 2019, es como sigue, en guaraníes:
A8: Concepto | B8: =IFERROR(IF(Indice!B6="","2XX2",YEAR(Indice!B6)),"2XX2") -> 2020 | C8: =IFERROR(YEAR(Indice!B6-366),"2XX1") -> 2019
A9: Productos terminados | B9: 16514912613 | C9: 1391832927
A10: Productos en proceso | B10: 861069624 | C10: 0
A11: Materia prima | B11: 8624871950 | C11: 0
A12: Insumos | B12: 325494004 | C12: 0
A13: Otros Productos en Proceso | B13: 590331898 | C13: 0
A14: Total | B14: =SUM(B9:B13) -> 26916680089 | C14: =SUM(C9:C13) -> 1391832927

Sheet Nota 8
A1: =Indice!C1 -> CEMENTOS CONCEPCIÓN S.A.E. | D1: BG
A4: Nota 8 - INVERSIONES PERMANENTES
A6: Las inversiones en sociedades se describen a continuación:
A8: Periodo | B8: =IFERROR(IF(Indice!B6="","2XX2",YEAR(Indice!B6)),"2XX2") -> 2020 | C8: =IFERROR(YEAR(Indice!B6-366),"2XX1") -> 2019
A9: Total Inversión | B9: 46750000 | C9: 0
A11: a) Datos sobre la sociedad:
D12: =IFERROR(IF(Indice!B6="","2XX2",YEAR(Indice!B6)),"2XX2") -> 2020
A13: Nombre de Sociedad | B13: RUC | C13: Cantidad de acciones | D13: Total Patrimonio neto | E13: Total del resultado
A14: TRES CERROS S.A. | D14: 46750000 | E14: 0
A16: * Observación: La sociedad ha sido constituida en octubre del 2020, por lo que se encuentra en proceso de formación e inscripción ante la SET y la inversión contabilizada obedece a un aporte para futura capitalización
A17: La participación Accionaria será del 70%.

Sheet Nota 9
A1: =Indice!C1 -> CEMENTOS CONCEPCIÓN S.A.E. | I1: BG
A3: NOTA 9 - PROPIEDADES, PLANTA Y EQUIPO - NETO
B6: Costo histórico revaluado al inicio del año | C6: Adquisiciones | D6: Transferencia | E6: Valor de origen final | F6: Depreciación acumulada revaluada al inicio del año | G6: Depreciación del año | H6: Depreciación acumulada al final del ejercicio | I6: Valor neto contable
I7: =IFERROR(IF(Indice!B6="","2XX2",YEAR(Indice!B6)),"2XX2") -> 2020 | J7: =IFERROR(YEAR(Indice!B6-366),"2XX1") -> 2019 | K7: Vida útil
A8: Construcciones y Mejoras | B8: 42255487 | C8: 29687231316 | D8: 0 | E8: 29729486803 | F8: 1760645 | G8: 1760645 | H8: 3521290 | I8: 29725965513 | J8: =+B8 -> 42255487 | K8: 40 años
A9: Embarcaciones | B9: 0 | C9: 239582000 | D9: 0 | E9: 239582000 | F9: 0 | G9: 0 | H9: 0 | I9: 239582000 | J9: 0 | K9: 10 años
A10: Equipos | B10: 1005754987 | C10: 3637584392 | D10: 0 | E10: 4643339379 | F10: 0 | G10: 201150998 | H10: 201150998 | I10: 4442188381 | J10: 1005754987 | K10: 5 años
A11: Equipos de Informática | B11: 965722271 | C11: 648551701 | D11: 0 | E11: 1614273972 | F11: 416354 | G11: 241534657 | H11: 241951011 | I11: 1372322961 | J11: 965722271 | K11: 4 años
A12: Equipos de Laboratorio | B12: 85095090 | C12: 550507472 | D12: 0 | E12: 635602562 | F12: 0 | G12: 0 | H12: 0 | I12: 635602562 | J12: 85095090 | K12: 5 años
A13: Herramientas | B13: 0 | C13: 87211894 | D13: 0 | E13: 87211894 | F13: 0 | G13: 0 | H13: 0 | I13: 87211894 | J13: 0 | K13: 5 años
A14: Instalaciones | B14: 403441730 | C14: 2563150877 | D14: 0 | E14: 2966592607 | F14: 0 | G14: 80688346 | H14: 80688346 | I14: 2885904261 | J14: 403441730 | K14: 5 años
A15: Maquinarias | B15: 20956351581 | C15: 12656149631 | D15: 0 | E15: 33612501212 | F15: 0 | G15: 645925076 | H15: 645925076 | I15: 32966576136 | J15: 20956351581 | K15: 10, 15 y 20 años
A16: Mejoras en Predio de Terceros | B16: 0 | C16: 2009446296 | D16: 0 | E16: 2009446296 | F16: 0 | G16: 1004723148 | H16: 1004723148 | I16: 1004723148 | J16: 0 | K16: 2 años
A17: Muebles y Equipos | B17: 439789345 | C17: 4414742038 | D17: 0 | E17: 4854531383 | F17: 14093295 | G17: 87957868 | H17: 102051163 | I17: 4752480220 | J17: 439789345 | K17: 10 y 5 añosos
A18: Terrenos | B18: 8253229528 | C18: 2414740000 | D18: 0 | E18: 10667969528 | F18: 0 | G18: 0 | H18: 0 | I18: 10667969528 | J18: 8253229528 | K18: -
A19: Vehículos Terrestres | B19: 10894836423 | C19: 6237974938 | D19: 0 | E19: 17132811361 | F19: 0 | G19: 673261966 | H19: 673261966 | I19: 16459549395 | J19: 10894836423 | K19: 5 y 7 años
A20: Obras en curso | B20: 49618657797 | C20: 230303588036 | D20: 0 | E20: 279922245833 | F20: 0 | G20: 0 | H20: 0 | I20: 279922245833 | J20: 49618657797 | K20: NOTA 9.1
A21: Maquinarias a Montar | B21: 0 | C21: 74708996845 | D21: =-D22 -> 322145958344 | E21: 396854955189 | F21: 0 | H21: 0 | I21: 396854955189 | J21: 0 | K21: NOTA 9.1
A22: Equipos en Importación | B22: 347397201931 | C22: 0 | D22: -322145958344 | E22: 25251243587 | F22: 0 | G22: 0 | H22: 0 | I22: 25251243587 | J22: 347397201931 | K22: NOTA 9.1
A23: Totales | B23: =SUM(B8:B22) -> 440062336170 | C23: 370159457436 | D23: 0 | E23: 810221793606 | F23: 16270294 | G23: 2937002704 | H23: 2953272998 | I23: =SUM($I$8:I22) -> 807268520608 | J23: =SUM($J$8:J22) -> 440062336170
I24: =+I23-BG!F23 -> 0 | J24: =+J23-BG!G23 -> 0
A25: Al 31 de diciembre de 2020 y 2019 se han registrado depreciaciones de propiedad, planta y equipo por un total de Gs. 2.937.002.704 y Gs. 16.270.294 respectivamente.
A27: Al 31 de diciembre de 2020, se han activado costos financieros dentro de obras en curso por un total de Gs. 34.129.718.832.
A29: NOTA 9.1: Los rubros de Obras en Curso, Maquinarias a Montar y Equipos en Importación son Activos en proceso de construcción y montaje
A31: NOTA 9.2: Dentro de este rubro existen bienes restringidos. Ver Nota 22.

Sheet Nota 10
A1: =Indice!C1 -> CEMENTOS CONCEPCIÓN S.A.E. | F1: BG
A4: NOTA 10 – ACTIVOS INTANGIBLES
A8: Activos intangibles | B8: =IFERROR(IF(Indice!B6="","2XX2",YEAR(Indice!B6)),"2XX2") -> 2020 | C8: =IFERROR(YEAR(Indice!B6-366),"2XX1") -> 2019
A9: Licencias | B9: =3405055205+55955000 -> 3461010205 | C9: 1858651363
A11: Menos amortización acumulada | B11: -467853060 | C11: -3190224
A13: Total general | B13: =SUM(B9:B12) -> 2993157145 | C13: =SUM(C9:C12) -> 1855461139
A15: Al 31 de diciembre de 2020 y 2019 se han registrado amortizaciones de activos intangibles por un total de Gs. 464.662.836 y Gs. 3.190.224 respectivamente.

Sheet Nota 11
A1: =Indice!C1 -> CEMENTOS CONCEPCIÓN S.A.E. | C1: BG
A4: NOTA 11 – CUENTAS POR PAGAR COMERCIALES
A6: El saldo al 31 de diciembre del 2020 y 2019, es como sigue, en guaraníes:
A8: Corrientes | B8: Simbología según ISO 4217 | C8: Indicación de Moneda | D8: =IFERROR(IF(Indice!B6="","2XX2",YEAR(Indice!B6)),"2XX2") -> 2020 | E8: =IFERROR(YEAR(Indice!B6-366),"2XX1") -> 2019
A9: Proveedores - Entidades Relacionadas | B9: PYG | C9: =IFERROR(VLOOKUP(B9,#REF!,2,0),"") ->  | D9: 1646950043 | E9: 51768290
A10: Proveedores - Entidades Relacionadas | B10: USD | C10: =IFERROR(VLOOKUP(B10,#REF!,2,0),"") ->  | D10: 2031127 | E10: 0
A11: Otros proveedores del exterior | B11: USD | C11: =IFERROR(VLOOKUP(B11,#REF!,2,0),"") ->  | D11: 8052447122 | E11: 243354790
A12: Otros proveedores del exterior | B12: EUR | C12: =IFERROR(VLOOKUP(B12,#REF!,2,0),"") ->  | D12: 2848291880 | E12: 0
A13: Otros proveedores del exterior | B13: BRL | C13: =IFERROR(VLOOKUP(B13,#REF!,2,0),"") ->  | D13: 0 | E13: 333232396
A14: Proveedores locales | B14: USD | C14: =IFERROR(VLOOKUP(B14,#REF!,2,0),"") ->  | D14: =4227042034-397608 -> 4226644426 | E14: 2529013392
A15: Proveedores locales | B15: PYG | C15: =IFERROR(VLOOKUP(B15,#REF!,2,0),"") ->  | D15: 11262597351 | E15: 436423864
A16: Total cuentas a pagar por comerciales | D16: =SUM(D9:D15) -> 28038961949 | E16: =SUM(E9:E15) -> 3593792732

Sheet Nota 12
A1: =Indice!C1 -> CEMENTOS CONCEPCIÓN S.A.E. | E1: BG | L1: BG
A4: NOTA 12 – DEUDAS FINANCIERAS CORRIENTE
A9: Corrientes
D10: =IFERROR(IF(Indice!B6="","2XX2",YEAR(Indice!B6)),"2XX2") -> 2020 | J10: =IFERROR(YEAR(Indice!B6-366),"2XX1") -> 2019
A11: Préstamos de Entidades Locales | B11: Vencimiento | C11: Símbolo de Moneda | D11: Moneda | E11: Importe (miles de Gs) | F11: Tipo de Garantía | H11: Vencimiento | I11: Símbolo de Moneda | J11: Moneda | K11: Importe (miles de Gs) | L11: Tipo de Garantía
A12: Sudameris Bank S.A.E.C.A. | D12: =IFERROR(VLOOKUP(C12,#REF!,2,0),"") ->  | H12: 2020-03-20 | I12: USD | J12: =IFERROR(VLOOKUP(I12,#REF!,2,0),"") ->  | K12: 96959250000 | L12: Sola firma
A13: Sudameris Bank S.A.E.C.A. | D13: =IFERROR(VLOOKUP(C13,#REF!,2,0),"") ->  | H13: 2020-05-15 | I13: USD | J13: =IFERROR(VLOOKUP(I13,#REF!,2,0),"") ->  | K13: 64639500000 | L13: Sola firma
A14: Banco BASA | B14: 2021-12-31 | C14: PYG | D14: =IFERROR(VLOOKUP(C14,#REF!,2,0),"") ->  | E14: 12570133 | F14: Línea tarjeta crédito | J14: =IFERROR(VLOOKUP(I14,#REF!,2,0),"") -> 
A15: Deudas bursátiles | D15: =IFERROR(VLOOKUP(C15,#REF!,2,0),"") ->  | J15: =IFERROR(VLOOKUP(I15,#REF!,2,0),"") -> 
A16: (Incluir programas de forma individual) | D16: =IFERROR(VLOOKUP(C16,#REF!,2,0),"") ->  | J16: =IFERROR(VLOOKUP(I16,#REF!,2,0),"") -> 
A17: Préstamos de Entidades en el Exterior | D17: =IFERROR(VLOOKUP(C17,#REF!,2,0),"") ->  | J17: =IFERROR(VLOOKUP(I17,#REF!,2,0),"") -> 
A18: Nombre de la entidad financiera | D18: =IFERROR(VLOOKUP(C18,#REF!,2,0),"") ->  | J18: =IFERROR(VLOOKUP(I18,#REF!,2,0),"") -> 
A19: Nombre de la entidad financiera | D19: =IFERROR(VLOOKUP(C19,#REF!,2,0),"") ->  | J19: =IFERROR(VLOOKUP(I19,#REF!,2,0),"") -> 
A20: (incluir otras entidades) | D20: =IFERROR(VLOOKUP(C20,#REF!,2,0),"") ->  | J20: =IFERROR(VLOOKUP(I20,#REF!,2,0),"") -> 
A21: Deudas bursátiles | D21: =IFERROR(VLOOKUP(C21,#REF!,2,0),"") ->  | J21: =IFERROR(VLOOKUP(I21,#REF!,2,0),"") -> 
A22: (Incluir programas de forma individual) | D22: =IFERROR(VLOOKUP(C22,#REF!,2,0),"") ->  | J22: =IFERROR(VLOOKUP(I22,#REF!,2,0),"") -> 
A23: Intereses préstamos entidades financieras a pagar | D23: =IFERROR(VLOOKUP(C23,#REF!,2,0),"") ->  | J23: =IFERROR(VLOOKUP(I23,#REF!,2,0),"") -> 
A24: Intereses a pagar | B24: 2021-03-02 | C24: USD | D24: =IFERROR(VLOOKUP(C24,#REF!,2,0),"") ->  | E24: 20156269369 | J24: =IFERROR(VLOOKUP(I24,#REF!,2,0),"") ->  | K24: 6540986063
A25: Intereses a pagar | B25: 2021-03-02 | C25: PYG | D25: =IFERROR(VLOOKUP(C25,#REF!,2,0),"") ->  | E25: 22358268496
A26: (-) Intereses a Devengar | E26: -42167952000
A27: Intereses deudas bursátiles a pagar | D27: =IFERROR(VLOOKUP(C27,#REF!,2,0),"") -> 
A28: Intereses a pagar | B28: 2021-03-29 | C28: PYG | D28: =IFERROR(VLOOKUP(C28,#REF!,2,0),"") ->  | E28: 22222602739
A29: (-) Intereses a Devengar | D29: =IFERROR(VLOOKUP(C29,#REF!,2,0),"") ->  | E29: -21749999999
A30: Total | D30: =IFERROR(VLOOKUP(C30,#REF!,2,0),"") ->  | E30: =SUM($E$12:E29) -> 831758738 | K30: =SUM($K$12:K29) -> 1.681397361e+11
A33: NO CORRIENTES
D34: =IFERROR(YEAR(Indice!B6),"2XX2") -> 2020 | J34: =IFERROR(YEAR(Indice!B6-366),"2XX1") -> 2019
A35: Préstamos de Entidades Locales | B35: Vencimiento | C35: Símbolo de Moneda | D35: Moneda | E35: Importe (miles de Gs) | F35: Tipo de garantía | H35: Vencimiento | I35: Símbolo de Moneda | J35: Moneda | K35: Importe (miles de Gs) | L35: Tipo de Garantía
A36: Sudameris Bank S.A.E.C.A. | B36: 2028-12-04 | C36: USD | D36: =IFERROR(VLOOKUP(C36,#REF!,2,0),"") ->  | E36: =27000000*6941.65+69 -> 187424550069 | F36: Fideicomiso | J36: =IFERROR(VLOOKUP(I36,#REF!,2,0),"") -> 
A37: Banco Familiar S.A.E.C.A. | B37: 2028-12-04 | C37: USD | D37: =IFERROR(VLOOKUP(C37,#REF!,2,0),"") ->  | E37: =5000000*6941.65 -> 34708250000 | F37: Fideicomiso | J37: =IFERROR(VLOOKUP(I37,#REF!,2,0),"") -> 
A38: Banco Familiar S.A.E.C.A. | B38: 2030-12-02 | C38: PYG | D38: =IFERROR(VLOOKUP(C38,#REF!,2,0),"") ->  | E38: 50400000000 | F38: Fideicomiso
A39: Banco Continental S.A.E.C.A. | B39: 2030-12-02 | C39: PYG | D39: =IFERROR(VLOOKUP(C39,#REF!,2,0),"") ->  | E39: 38880000000 | F39: Fideicomiso
A40: Visión Banco S.A.E.C.A. | B40: 2030-12-02 | C40: PYG | D40: =IFERROR(VLOOKUP(C40,#REF!,2,0),"") ->  | E40: 18720000000 | F40: Fideicomiso
A41: Banco Regional S.A.E.C.A. | B41: 2030-12-02 | C41: PYG | D41: =IFERROR(VLOOKUP(C41,#REF!,2,0),"") ->  | E41: 79200000000 | F41: Fideicomiso
A42: Banco Nacional de Fomento | B42: 2030-12-02 | C42: PYG | D42: =IFERROR(VLOOKUP(C42,#REF!,2,0),"") ->  | E42: 14400000000 | F42: Fideicomiso | J42: =IFERROR(VLOOKUP(I42,#REF!,2,0),"") -> 
A43: Deudas bursátiles | D43: =IFERROR(VLOOKUP(C43,#REF!,2,0),"") ->  | J43: =IFERROR(VLOOKUP(I43,#REF!,2,0),"") -> 
A44: Programa Emisión Global 1 | B44: 2030-03-18 | C44: PYG | D44: =IFERROR(VLOOKUP(C44,#REF!,2,0),"") ->  | E44: 100000000000 | F44: Sola firma
A45: Programa Emisión Global 2 | B45: 2030-12-16 | C45: PYG | D45: =IFERROR(VLOOKUP(C45,#REF!,2,0),"") ->  | E45: 100000000000 | F45: Sola firma | J45: =IFERROR(VLOOKUP(I45,#REF!,2,0),"") -> 
A46: Préstamos de Entidades en el Exterior | D46: =IFERROR(VLOOKUP(C46,#REF!,2,0),"") ->  | J46: =IFERROR(VLOOKUP(I46,#REF!,2,0),"") -> 
A47: Nombre de la entidad financiera | D47: =IFERROR(VLOOKUP(C47,#REF!,2,0),"") ->  | J47: =IFERROR(VLOOKUP(I47,#REF!,2,0),"") -> 
A48: Nombre de la entidad financiera | D48: =IFERROR(VLOOKUP(C48,#REF!,2,0),"") ->  | J48: =IFERROR(VLOOKUP(I48,#REF!,2,0),"") -> 
A49: (incluir otras entidades) | D49: =IFERROR(VLOOKUP(C49,#REF!,2,0),"") ->  | J49: =IFERROR(VLOOKUP(I49,#REF!,2,0),"") -> 
A50: Deudas bursátiles | D50: =IFERROR(VLOOKUP(C50,#REF!,2,0),"") ->  | J50: =IFERROR(VLOOKUP(I50,#REF!,2,0),"") -> 
A51: (Incluir programas de forma individual) | D51: =IFERROR(VLOOKUP(C51,#REF!,2,0),"") ->  | J51: =IFERROR(VLOOKUP(I51,#REF!,2,0),"") -> 
A52: Intereses préstamos entidades financieras a pagar | D52: =IFERROR(VLOOKUP(C52,#REF!,2,0),"") ->  | J52: =IFERROR(VLOOKUP(I52,#REF!,2,0),"") -> 
A53: Intereses a pagar | D53: =IFERROR(VLOOKUP(C53,#REF!,2,0),"") ->  | E53: 214447218485 | J53: =IFERROR(VLOOKUP(I53,#REF!,2,0),"") -> 
A54: (-) Intereses a Devengar | E54: -214447218485
A55: Intereses deudas bursátiles a pagar | D55: =IFERROR(VLOOKUP(C55,#REF!,2,0),"") ->  | J55: =IFERROR(VLOOKUP(I55,#REF!,2,0),"") -> 
A56: Intereses a pagar | D56: =IFERROR(VLOOKUP(C56,#REF!,2,0),"") ->  | E56: 186000000000 | J56: =IFERROR(VLOOKUP(I56,#REF!,2,0),"") -> 
A57: (-) Intereses a Devengar | D57: =IFERROR(VLOOKUP(C57,#REF!,2,0),"") ->  | E57: -186000000000
A58: Total | D58: =IFERROR(VLOOKUP(C58,#REF!,2,0),"") ->  | E58: =SUM($E$36:E57) -> 623732800069 | J58: =IFERROR(VLOOKUP(I58,#REF!,2,0),"") ->  | K58: =SUM($K$36:K57) -> 0
J59: =IFERROR(VLOOKUP(I59,#REF!,2,0),"") -> 
A61: Las deudas financieras son todas a largo plazo, las que son en USD a un plazo de 8 años a una tasa del 9% y en Gs a un plazo de 10 años a una tasa del 11%. Estas operaciones están garantizadas por un FIDEICOMISO.
A63: En fecha 23/03/2020 la Comisión Nacional de Valores inscribió en sus registros el Certificado de Registro CNV N° 19_23032020 siendo la misma el Programa de Emisión Global por Gs. 300.000.000.000.- y siendo aprobada en fecha 30/03/2020 una emisión de Gs. 100.000.000.000.- a una tasa del 12% anual por 10 años, con pagos trimestrales de intereses. Posteriormente es aprobada una segunda emisión del mismo programa global en fecha 17/12/2020 de Gs. 100.000.000.000.- a una tasa del 9,75% por 10 años con pagos trimestrales de intereses.

Sheet Nota 13
A1: =Indice!C1 -> CEMENTOS CONCEPCIÓN S.A.E. | D1: BG
A4: NOTA 13 - PROVISIONES
A6: El saldo al 31 de diciembre del 2020 y 2019, es como sigue, en guaraníes:
A8: Provisiones | B8: =IFERROR(IF(Indice!B6="","2XX2",YEAR(Indice!B6)),"2XX2") -> 2020 | C8: =IFERROR(YEAR(Indice!B6-366),"2XX1") -> 2019
A10: Honorarios Profesionales a Pagar | B10: 4514755 | C10: 8000000
A11: Gastos a Reponer FF | B11: 17917213 | C11: =42593066+18216140 -> 60809206
A12: Provisiones Varias | B12: 6956511185 | C12: 954568177
A13: Total | B13: =SUM($B$10:B12) -> 6978943153 | C13: =SUM($C$10:C12) -> 1023377383

Sheet Nota 14
A1: =Indice!C1 -> CEMENTOS CONCEPCIÓN S.A.E. | D1: BG
A3: NOTA 14 – OTROS PASIVOS CORRIENTES y NO CORRIENTES
A6: Corrientes | B6: =IFERROR(IF(Indice!B6="","2XX2",YEAR(Indice!B6)),"2XX2") -> 2020 | C6: =IFERROR(YEAR(Indice!B6-366),"2XX1") -> 2019
A7: Retencion de IVA a pagar | B7: 57717823 | C7: 113990498
A8: Retencion Impuesto a la renta a Pagar | B8: 251209084 | C8: 289537951
A9: Anticipos de Clientes | B9: 95005491 | C9: 428115770
A10: Otros Pasivos | B10: 900133 | C10: 900000
A11: Otros Pasivos con Entidades relacionadas | B11: 42336600366 | C11: 0
A12: Total | B12: =SUM(B7:B11) -> 42741432897 | C12: =SUM(C7:C11) -> 832544219

Sheet Nota 15
A1: =Indice!C1 -> CEMENTOS CONCEPCIÓN S.A.E. | C1: Indice
A5: NOTA 15 - SALDOS CON PARTES RELACIONADAS
B10: =IFERROR(IF(Indice!B6="","2XX2",YEAR(Indice!B6)),"2XX2") -> 2020 | C10: =+IFERROR(YEAR(Indice!B6-366),"2XX1") -> 2019
A11: ACTIVO
A12: Cuentas a cobrar comerciales | B12: 205201646 | C12: 22288000
A13: Total activo | B13: =SUM(B12:B12) -> 205201646 | C13: =SUM(C12:C12) -> 22288000
A16: PASIVO
A17: Cuentas por pagar Relacionadas | B17: =+B10 -> 2020 | C17: =+C10 -> 2019
A18: Jiménez Gaona y Lima Construcciones S.A. | B18: 1643650043 | C18: 43625134
A19: Prana S.A. | B19: 3300000 | C19: 0
A20: Tabacalera del Este S.a. | B20: 2031127 | C20: 0
A21: Compañía Agrotabacalera del Paraguay S.A. | B21: 0 | C21: 6000000
A22: Distribuidora del Paraguay S.A. | B22: 0 | C22: 2143156
A23: Total Cuentas por pagar Relacionadas | B23: =+SUM(B18:B22) -> 1648981170 | C23: =+SUM(C18:C22) -> 51768290
A25: Préstamos a pagar Relacionadas | B25: =+B17 -> 2020 | C25: =+C17 -> 2019
A26: Tabacalera del Este S.A. | B26: 28431048976 | C26: 0
A27: Veneto S.A. | B27: 13905551390 | C27: 0
A28: Total Préstamos a pagar Relacionadas | B28: =+SUM(B26:B27) -> 42336600366 | C28: =+SUM(C26:C27) -> 0

Sheet Nota 16.1
A1: =Indice!C1 -> CEMENTOS CONCEPCIÓN S.A.E. | G1: ER
A5: NOTA 16.1 - GASTOS ADMINISTRATIVOS Y DE VENTAS
A8: El saldo de los “Gastos Administrativos” y “Gastos de Ventas” al 31 de diciembre del 2020 y 2019, es como sigue, en guaraníes:
C11: =IFERROR(IF(Indice!B6="","2XX2",YEAR(Indice!B6)),"2XX2") -> 2020 | F11: =+IFERROR(YEAR(Indice!B6-366),"2XX1") -> 2019
B12: Gastos de Ventas | C12: Gastos Administrativos | D12: Total | E12: Gastos de Ventas | F12: Gastos Administrativos | G12: Total
A13: Movilidad y viáticos | B13: 0 | C13: 2538279039 | D13: =+C13+B13 -> 2538279039 | E13: 0 | F13: 0 | G13: =+F13+E13 -> 0
A14: Gastos de alquiler | B14: 0 | C14: 3049590519 | D14: =+C14+B14 -> 3049590519 | E14: 0 | F14: 0 | G14: 0
A15: Computación y redes | B15: 0 | C15: 489723647 | D15: =+C15+B15 -> 489723647 | E15: 0 | F15: 0 | G15: 0
A16: Gastos por servicios | B16: 412397489 | C16: 1412159449 | D16: 1824556938 | E16: 125101205 | F16: 0 | G16: 125101205
A17: Honorarios profesionales y asesoramiento | B17: 0 | C17: 2227951323 | D17: 2227951323 | E17: 0 | F17: 2995003927 | G17: 2995003927
A18: Investigación de mercado | B18: 0 | C18: 0 | D18: 0 | E18: 0 | F18: 0 | G18: 0
A19: Impuestos y tasas | B19: 0 | C19: 233910661 | D19: 233910661 | E19: 0 | F19: 252487337 | G19: 252487337
A20: Gastos de reparación y mantenimiento | B20: 0 | C20: 2610116015 | D20: 2610116015 | E20: 0 | F20: 0 | G20: 0
A21: Gastos del personal y capacitación | B21: 0 | C21: 1616293039 | D21: 1616293039 | E21: 0 | F21: 0 | G21: 0
A22: Seguros pagados | B22: 0 | C22: 115054468 | D22: 115054468 | E22: 0 | F22: 0 | G22: 0
A23: Otros gastos de operación | B23: 0 | C23: 0 | D23: 0 | E23: 0 | F23: 0 | G23: 0
A24: Remuneraciones de administradores, directores, síndicos y consejo de vigilancia | B24: 0 | C24: 1724236970 | D24: 1724236970 | E24: 0 | F24: 2605840100 | G24: =+F24+E24 -> 2605840100
A25: Sueldos y Jornales | B25: 0 | C25: 8412671953 | D25: 8412671953 | E25: 0 | F25: 3952377281 | G25: =+F25+E25 -> 3952377281
A26: Contribuciones Sociales | B26: 0 | C26: 1257598084 | D26: 1257598084 | E26: 0 | F26: 591890024 | G26: 591890024
A27: Regalías y Honorarios por servicios técnicos | B27: 0 | C27: 0 | D27: 0 | E27: 0 | F27: 0 | G27: 0
A28: Gastos de Publicidad y Propaganda | B28: 95381666 | C28: 0 | D28: 95381666 | E28: 0 | F28: 0 | G28: 0
A29: Intereses, multas y recargos impositivos | B29: 0 | C29: 143875942 | D29: 143875942 | E29: 0 | F29: 200000 | G29: 200000
A30: Intereses a bancos e instituciones financieras | B30: 0 | C30: 0 | D30: 0 | E30: 0 | F30: 3486886818 | G30: 3486886818
A31: Depreciación bienes de uso | B31: 0 | C31: 1637969379 | D31: 1637969379 | E31: 0 | F31: 16270295 | G31: 16270295
A32: Amortización activos intangibles | B32: 0 | C32: 464662836 | D32: 464662836 | E32: 0 | F32: 3190224 | G32: 3190224
A33: Previsiones | B33: 0 | C33: 209557575 | D33: 209557575 | E33: 0 | F33: 0 | G33: 0
A34: Gastos No Deducibles | B34: 0 | C34: 3901802989 | D34: 3901802989 | E34: 0 | F34: 1273687555 | G34: 1273687555
A35: Responsabilidad Social Empresarial - RSE | B35: 0 | C35: 1510742308 | D35: 1510742308 | E35: 0 | F35: 0 | G35: 0
A36: Otros Gastos | B36: 0 | C36: 1076978304 | D36: 1076978304 | E36: 0 | F36: 2157203832 | G36: 2157203832
A37: Total | B37: =+SUM($B$13:B36) -> 507779155 | C37: =+SUM($C$13:C36) -> 34633174500 | D37: =+SUM(D13:D36) -> 35140953655 | E37: =+SUM(E13:E36) -> 125101205 | F37: =+SUM(F13:F36) -> 17335037393 | G37: =+SUM(G13:G36) -> 17460138598

Sheet Nota 16.2
A1: =Indice!C1 -> CEMENTOS CONCEPCIÓN S.A.E. | E1: ER
A4: Nota 16.2 - OTROS INGRESOS
A6: El saldo de los “Otros Ingresos” al 31 de diciembre del 2020 y 2019, es como sigue, en guaraníes:
A8: Otros ingresos | B8: =IFERROR(IF(Indice!B6="","2XX2",YEAR(Indice!B6)),"2XX2") -> 2020 | C8: =+IFERROR(YEAR(Indice!B6-366),"2XX1") -> 2019 | F8: =IFERROR(IF(Indice!B6="","2XX2",YEAR(Indice!B6)),"2XX2") -> 2020 | G8: =+IFERROR(YEAR(Indice!B6-366),"2XX1") -> 2019
A9: Otros Ingresos | B9: =316720944-3790578 -> 312930366 | C9: 4490707
A10: Total | B10: =SUM($B$9:B9) -> 312930366 | C10: =SUM($C$9:C9) -> 4490707 | F10: =SUM($F$9:F9) -> 0 | G10: =SUM($G$9:G9) -> 0

Sheet Nota 17
A1: =Indice!C1 -> CEMENTOS CONCEPCIÓN S.A.E. | E1: ER
A5: NOTA 17 - INGRESOS Y GASTOS FINANCIEROS NETOS
A7: El saldo al 31 de diciembre del 2020 y 2019, es como sigue, en guaraníes:
A9: Ingresos Financieros netos | B9: =IFERROR(IF(Indice!B6="","2XX2",YEAR(Indice!B6)),"2XX2") -> 2020 | C9: =+IFERROR(YEAR(Indice!B6-366),"2XX1") -> 2019
A10: Diferencia de Cambio neto | B10: 11188142308 | C10: 16714348519
A11: Gastos Bancarios | B11: -515908054 | C11: -571838342
A12: Intereses cobrados - Caja Ahorro | B12: 270517 | C12: 32114
A13: Total ingresos financieros | B13: =SUM($B10:B12) -> 10672504771 | C13: =SUM($C10:C12) -> 16142542291

Sheet Nota 18
A1: =Indice!C1 -> CEMENTOS CONCEPCIÓN S.A.E. | E1: ER
A4: Nota 18 - IMPUESTO A LA RENTA Y DIFERIDO
A5: El detalle del activo por impuesto diferido y corriente es el siguiente:
A7: Activo por impuesto diferido | B7: 2020 | C7: 2019
A9: Quebrantos impositivos acumulados (neto) | B9: 844880621 | C9: 0
A10: Total | B10: 844880621 | C10: 0
A12: El cargo a resultado de la cuenta del impuesto diferido y corriente es el siguiente:
B14: =IFERROR(IF(Indice!B6="","2XX2",YEAR(Indice!B6)),"2XX2") -> 2020 | C14: =+IFERROR(YEAR(Indice!B6-366),"2XX1") -> 2019
A15: Impuesto corriente | B15: 0 | C15: -230722158
A16: Impuesto diferido | B16: 844880621 | C16: 0
A17: Total | B17: =SUM($B15:B16) -> 844880621 | C17: =SUM($C15:C16) -> -230722158

Sheet Nota 19
A1: =Indice!C1 -> CEMENTOS CONCEPCIÓN S.A.E. | D1: BG
A3: NOTA 19 - CAPITAL SOCIAL
A5: Integrado
A6: El capital integrado al 31 de diciembre de 2020 asciende a Gs. 330.000.000.000 y está representado por 330.000 acciones nominativas, ordinarias de valor nominal Gs. 1.000.000 cada una.
A8: Aportes para Futura Integración de Acciones
A9: Durante el ejercicio 2019 la sociedad ha recibido aportes para futura integración de acciones por Gs. 288.626.013.084, que sumado al saldo inicial de Gs. 402.816.791 totalizó la suma de Gs. 289.028.829.875. De dicho saldo fue capitalizada la suma de Gs. 288.893.000.0000, quedando para futura integración de acciones un total de Gs. 135.829.875.-
A11: RESERVA DE REVALUO
A12: El saldo de este rubro corresponde a la revaluación anual obligatoria de los bienes de uso, que fue realizada tal como lo exige la disposición legal y reglamentaria impositiva vigentes. A partir del ejercicio 2020 esta ya no fue hecha adecuándose a las modificaciones legales y también a las NIF Normas de Información Financiera.
A13: El incremento patrimonial producido por el revalúo de los bienes de uso podrá ser capitalizado, no pudiendo ser distribuido como dividendo, utilidad o beneficio.
A15: RESERVA LEGAL Y OTRAS RESERVAS
A16: NOTA 21.1 RESERVA LEGAL: Al cierre del 31 de diciembre de 2019, la Empresa ha constituido la suma de Gs. 2.624.662 en concepto de Reserva Legal, que representa el 5% sobre el resultado utilidad del ejercicio cerrado al 31.12.2018, que fue de Gs. 52.493.238. Además, al cierre del 30 de junio de 2020, la Empresa ha constituido la suma de Gs. 38.290.179 en concepto de Reserva Legal, que representa el 5% sobre el resultado utilidad del ejercicio cerrado al 31.12.2019, que fue de Gs. 765.803.588. En total se ha constituido Reserva Legal por Gs. 40.914.841.-
A17: NOTA 21.2 RESERVA FACULTATIVA: Al cierre del 30 de junio de 2020, la Empresa ha constituido la suma de Gs. 318.439.394 en concepto de Reserva Facultativa, que corresponde a las utilidades netas luego de la Reserva Legal.

Sheet Nota 20
A1: =Indice!C1 -> CEMENTOS CONCEPCIÓN S.A.E. | D1: BG
A3: NOTA 20 - RESERVA DE REVALUO
A5: El saldo de este rubro corresponde a la revaluación anual obligatoria de los bienes de uso, que fue realizada tal como lo exige la disposición legal y reglamentaria impositiva vigentes. A partir del ejercicio 2020 esta ya no fue hecha adecuándose a las modificaciones legales y también a las NIF Normas de Información Financiera.
A6: El incremento patrimonial producido por el revalúo de los bienes de uso podrá ser capitalizado, no pudiendo ser distribuido como dividendo, utilidad o beneficio.

Sheet Nota 21
A2: =Indice!C1 -> CEMENTOS CONCEPCIÓN S.A.E. | D2: BG
A4: NOTA 21 - RESERVA LEGAL Y OTRAS RESERVAS
A6: NOTA 21.1 RESERVA LEGAL: Al cierre del 31 de diciembre de 2019, la Empresa ha constituido la suma de Gs. 2.624.662 en concepto de Reserva Legal, que representa el 5% sobre el resultado utilidad del ejercicio cerrado al 31.12.2018, que fue de Gs. 52.493.238. Además, al cierre del 30 de junio de 2020, la Empresa ha constituido la suma de Gs. 38.290.179 en concepto de Reserva Legal, que representa el 5% sobre el resultado utilidad del ejercicio cerrado al 31.12.2019, que fue de Gs. 765.803.588. En total se ha constituido Reserva Legal por Gs. 40.914.841.-
A7: NOTA 21.2 RESERVA FACULTATIVA: Al cierre del 30 de junio de 2020, la Empresa ha constituido la suma de Gs. 318.439.394 en concepto de Reserva Facultativa, que corresponde a las utilidades netas luego de la Reserva Legal.

Sheet Nota 22
A1: =Indice!C1 -> CEMENTOS CONCEPCIÓN S.A.E. | E1: Indice
A4: NOTA 22 - BIENES DE USO CON DISPONIBILIDAD RESTRINGIDA
A7: Tipo de Activo | B7: Datos del activo gravado | C7: Tipo de garantía | D7: Importe (indicar moneda) | E7: A favor de
A8: Vehículo Terrestre | B8: HYUNDAI HD72 5,5 TONELADAS CHASIS CON CABINA , CHASIS N° KMFGA17PPLC344048, MOTOR N° D4DDKJ681888, COLOR BLANCO | C8: Prenda | D8: 170537890 | E8: AUTOMOTOR S.A.
A9: Vehículo Terrestre | B9: HYUNDAI HD72 5,5 TONELADAS CHASIS CON CABINA , CHASIS N° KMFGA17PPLC344035, MOTOR N° D4DDKJ681790, COLOR BLANCO | C9: Prenda | D9: 171262603 | E9: AUTOMOTOR S.A.
A10: Vehículo Terrestre | B10: MARCA KIA, MODELO K2700 (PU) CHASIS: KNCSHY71CL7410278, AÑO 2020, COLO BLANCO | C10: Prenda | D10: 135343347 | E10: GARDEN AUTOMOTOR S.A.
A11: Vehículo Terrestre | B11: MARCA KIA, MODELO K2700 (PU) CHASIS: KNCSHX71AL7410178, AÑO 2020, COLO BLANCO | C11: Prenda | D11: 116132550 | E11: GARDEN AUTOMOTOR S.A.
A12: Vehículo Terrestre | B12: CAMION SINOTRUK HOWO 336 2020 TUMBA 16M3 5Y5 MEC 6*4 CUBO LZZ5ELNB3KN504129 | C12: Prenda | D12: 484006500 | E12: CATHAY S.A.
A13: Vehículo Terrestre | B13: CAMION SINOTRUK HOWO 336 2020 TUMBA 16M3 5Y5 MEC 6*4 CUBO LZZ5ELNB1KN504128 | C13: Prenda | D13: 484006500 | E13: CATHAY S.A.
A15: Estos bienes se encuentran como garantía por la compra de los mismos.

Sheet Nota 23
A1: =Indice!C1 -> CEMENTOS CONCEPCIÓN S.A.E. | D1: Índice
A4: NOTA 23 - RESTRICCION DE LA DISTRIBUCION DE UTILIDADES
A6: RESTRICCION DE LA DISTRIBUCION DE UTILIDADES a) De acuerdo con la legislación vigente y los estatutos sociales, las sociedades por acciones y las de responsabilidad limitada, deben constituir una reserva legal no menor del 5% de las utilidades netas del ejercicio, hasta alcanzar el 20% del capital suscripto. b) El incremento patrimonial producido por el revalúo de los bienes de uso podrá ser capitalizado, no pudiendo ser distribuido como dividendo, utilidad o beneficio. c) Hasta el 31 de diciembre de 2019, de acuerdo con la Ley Nº 125/91, modificada por la Ley 2421/04 que establece el régimen tributario, las utilidades obtenidas y remesadas a beneficiarios radicados en el exterior se hallan sujetas a una retención del 15% en concepto de impuesto a la renta gravada con una tasa adicional de impuesto a la renta del 5% para la entidad. d) Con la entrada en vigencia de la Ley 6380/19 a partir del 1° de enero del 2020, las utilidades generadas no distribuidas al cierre del ejercicio 2019 estarán sujetas a una retención del 8% en concepto del Utilidades IDU en el momento de la remesa o acreditamiento a personas físicas o jurídicas domiciliadas en el país, mientras que la tasa será del 15% cuando se tratase de no domiciliados. Excepcionalmente durante el primer año de vigencia de la Ley las ganancias acumuladas generadas en ejercicios anteriores y que no fueron capitalizadas ni distribuidas.

Sheet Nota 24
A1: =Indice!C1 -> CEMENTOS CONCEPCIÓN S.A.E. | E1: Indice
A4: NOTA 24 - CONTINGENCIAS Y COMPROMISOS
A6: Al 31 de diciembre de 2020 no existen situaciones contingentes, ni reclamos que pudieran resultar compromisos para la Sociedad, adicionales a las que se presentan en los Estados Financieros.

Sheet Nota 25
A1: =Indice!C1 -> CEMENTOS CONCEPCIÓN S.A.E. | D1: Índice
A4: NOTA 25: SITUACIÓN DE PANDEMIA COVID-19
A6: A mediados de marzo del 2020, la Organización Mundial de la Salud declaró al brote de coronavirus COVID-19 como una pandemia. La situación de emergencia sobre la salud pública se expandió prácticamente en todo el mundo y los distintos países han tomado diversas medidas para hacerle frente. Esta situación y las medidas adoptadas han afectado significativamente la actividad económica internacional con impactos diversos en los distintos países y sectores de negocio. La Dirección de la Compañía estima que esta situación generará un impacto adverso sobre las operaciones de la Compañía, pero las incertidumbres en relación con los efectos, extensión y duración de esta cuestión no permiten una estimación razonable de ese impacto a la fecha de emisión de los presentes estados financieros, lo que dependerá de la gravedad de la emergencia sanitaria y del éxito de las medidas tomadas y que se tomen en el futuro.

Sheet Nota 26
A1: =Indice!C1 -> CEMENTOS CONCEPCIÓN S.A.E. | E1: Indice
A5: NOTA 26 - HECHOS POSTERIORES
A7: A la fecha de emisión de estos Estados Financieros , han ocurrido los siguientes eventos:
A9: a) En fecha 12/03/2021 se ha emitido la serie 3 del Programa de emisión global por Gs. 100.000.000.000 con una tasa del 9,25% anual a un plazo de 10 años, con vencimiento trimestral de intereses y pago de Capital al final del período.
A11: b) En fecha 31/03/2021 se han emitido las facturas 001-002-0000081 por valor de Gs. 134.449.046.401 y 001-002-0000082 por valor de Gs. 21.859.223.764 para traspaso de bienes del Activo Fijo como cesión de derecho al Patrimonio Autónomo del Fideicomiso de Administración y Garantía Cecon1.
